[Event "ESTCC-50 2025"]
[Site "Swidnica"]
[Date "2025.04.07"]
[Round "3.8"]
[White "Crocker, Philip J"]
[Black "Tischbierek, Raj"]
[Result "1/2-1/2"]
[Annotator "RC"]
[ECO "A29"]
[WhiteElo "2137"]
[BlackElo "2418"]
[PlyCount "61"]
[EventDate "2025.04.05"]
[EventType "team-tourn"]
[EventCountry "POL"]
[SourceTitle "playchess.com"]
[Source "ChessBase"]
[SourceQuality "1"]
[WhiteTeam "England"]
[BlackTeam "Germany"]
[WhiteTeamCountry "ENG"]
[BlackTeamCountry "GER"]
[TimeControl "40/5400+30:1800+30"]

1. c4 {[%emt 0:00:05]} e5 {[%emt 0:00:08]} 2. Nc3 {[%emt 0:00:22]} Nf6 {[%emt 0:00:13]} 3. Nf3 {[%emt 0:00:24]} Nc6 {[%emt 0:00:26]} 4. g3 {[%emt 0:00:15]} Bc5 {[%emt 0:02:59]} 5. Bg2 {[%emt 0:00:42]} d6 {[%emt 0:01:32]} 6. O-O {[%emt 0:00:43]} a6 {[%emt 0:00:18]} 7. e3 {[%emt 0:00:42]} O-O {[%emt 0:00:59]} 8. b3 {[%emt 0:01:42]} Bg4 {[%emt 0:02:45]} 9. h3 {[%emt 0:00:47]} Bh5 {[%emt 0:00:53]} 10. g4 {[%emt 0:01:26]} Bg6 {[%emt 0:00:14]} 11. d4 {[%emt 0:01:40]} Ba7 {[%emt 0:03:37]} 12. dxe5 {[%emt 0:05:13]} dxe5 {[%emt 0:01:06]} 13. Ba3 {[%emt 0:03:20]} Re8 {[%emt 0:04:50]} 14. Qxd8 {[%emt 0:02:15]} Raxd8 {[%emt 0:06:49]} 15. Rfd1 {[%emt 0:02:00]} h6 {[%emt 0:18:50]} 16. Nh4 {[%emt 0:11:58]} Bh7 {[%emt 0:04:32]} 17. Nd5 {[%emt 0:03:50]} Nxd5 {[%emt 0:08:12]} 18. Bxd5 {[%emt 0:01:08]} a5 {[%emt 0:09:57]} 19. Nf5 {[%emt 0:08:37]} Bxf5 {[%emt 0:03:13]} 20. gxf5 {[%emt 0:01:19]} Nb4 {[%emt 0:04:55]} 21. Bxb4 {[%emt 0:01:55]} axb4 {[%emt 0:00:06]} 22. Bxb7 {[%emt 0:01:06]} Bc5 {[%emt 0:02:38]} 23. Bc6 {[%emt 0:04:02]} Rf8 {[%emt 0:00:15]} 24. Kg2 {[%emt 0:01:53]} Rd6 {[%emt 0:00:40]} 25. Rxd6 {[%emt 0:01:11]} cxd6 {[%emt 0:00:21]} 26. Rd1 {[%emt 0:03:51]} Rc8 {[%emt 0:01:08]} 27. Bd5 {[%emt 0:02:55]} Kf8 {[%emt 0:00:25]} 28. Kf3 {[%emt 0:02:29]} Ke7 {[%emt 0:00:09]} 29. Ke4 {[%emt 0:01:20]} Kf6 {[%emt 0:02:14]} 30. Rg1 {[%emt 0:01:43]} Rc7 {[%emt 0:05:38]} 31. f3 {[%emt 0:09:06]} 1/2-1/2

[Event "ESTCC-50 2025"]
[Site "Swidnica"]
[Date "2025.04.07"]
[Round "3.9"]
[White "Lalic, Susan K"]
[Black "Rogowski, Jaroslaw"]
[Result "0-1"]
[Annotator "RC"]
[ECO "B03"]
[WhiteElo "2227"]
[BlackElo "2050"]
[PlyCount "132"]
[EventDate "2025.04.05"]
[EventType "team-tourn"]
[EventCountry "POL"]
[SourceTitle "playchess.com"]
[Source "ChessBase"]
[SourceQuality "1"]
[WhiteTeam "England"]
[BlackTeam "Poland"]
[WhiteTeamCountry "ENG"]
[BlackTeamCountry "POL"]
[TimeControl "40/5400+30:1800+30"]

1. e4 {[%emt 0:00:04]} Nf6 {[%emt 0:00:13]} 2. e5 {[%emt 0:00:23]} Nd5 {[%emt 0:00:05]} 3. d4 {[%emt 0:00:19]} d6 {[%emt 0:00:07]} 4. c4 {[%emt 0:00:22]} Nb6 {[%emt 0:00:06]} 5. exd6 {[%emt 0:00:03]} cxd6 {[%emt 0:00:15]} 6. Nc3 {[%emt 0:01:06]} g6 {[%emt 0:01:26]} 7. h3 {[%emt 0:00:37]} Bg7 {[%emt 0:00:14]} 8. Nf3 {[%emt 0:00:17]} O-O {[%emt 0:00:48]} 9. Be2 {[%emt 0:00:18]} Nc6 {[%emt 0:00:43]} 10. O-O {[%emt 0:00:52]} Bf5 {[%emt 0:01:21]} 11. d5 {[%emt 0:01:35]} Na5 {[%emt 0:07:04]} 12. Nd4 {[%emt 0:01:16]} Naxc4 {[%emt 0:12:33]} 13. a4 {[%emt 0:01:52]} a5 {[%emt 0:28:41]} 14. Nxf5 {[%emt 0:03:38]} gxf5 {[%emt 0:00:08]} 15. Re1 {[%emt 0:00:28]} Re8 {[%emt 0:13:48]} 16. Bxc4 {[%emt 0:33:42]} Nxc4 {[%emt 0:00:10]} 17. Qd3 {[%emt 0:00:11]} Qc8 {[%emt 0:02:56]} 18. Qg3 {[%emt 0:02:43]} Kh8 {[%emt 0:00:53]} 19. Qh4 {[%emt 0:02:53]} Ne5 {[%emt 0:01:51]} 20. Bh6 {[%emt 0:01:03]} Rg8 {[%emt 0:07:50]} 21. Bxg7+ {[%emt 0:09:23]} Rxg7 {[%emt 0:00:03]} 22. Rxe5 {[%emt 0:00:22]} dxe5 {[%emt 0:00:11]} 23. Qxe7 {[%emt 0:00:02]} Qd8 {[%emt 0:12:58]} 24. Qxe5 {[%emt 0:06:20]} Qg5 {[%emt 0:00:06]} 25. g3 {[%emt 0:00:57]} f6 {[%emt 0:00:59]} 26. Qd4 {[%emt 0:04:58]} f4 {[%emt 0:01:49]} 27. Re1 {[%emt 0:15:02]} fxg3 28. f4 {[%emt 0:00:03]} Qf5 {[%emt 0:03:18]} 29. Kg2 {[%emt 0:00:03]} Rg6 {[%emt 0:01:36]} 30. Qe4 {[%emt 0:04:24]} Qxe4+ {[%emt 0:00:48]} 31. Rxe4 {[%emt 0:00:11]} Rd8 {[%emt 0:00:47]} 32. Rd4 {[%emt 0:03:21]} f5 {[%emt 0:01:17]} 33. Nb5 {[%emt 0:00:23]} Kg8 {[%emt 0:00:31]} 34. d6 {[%emt 0:00:42]} Kf7 {[%emt 0:00:24]} 35. Rd5 {[%emt 0:00:50]} Rf6 {[%emt 0:00:55]} 36. Kxg3 {[%emt 0:01:14]} Rd7 {[%emt 0:00:29]} 37. Re5 {[%emt 0:02:29]} Rg6+ {[%emt 0:00:37]} 38. Kf3 {[%emt 0:00:43]} Kf6 {[%emt 0:00:17]} 39. Nc7 {[%emt 0:02:23]} Rg1 {[%emt 0:00:36]} 40. Nd5+ {[%emt 0:00:00]} Kf7 {[%emt 0:00:00]} 41. Rxf5+ {[%emt 0:07:10]} Ke6 {[%emt 0:01:19]} 42. Ne3 {[%emt 0:00:49]} Rxd6 {[%emt 0:19:11]} 43. Rxa5 {[%emt 0:04:49]} Rb6 {[%emt 0:00:53]} 44. Rh5 {[%emt 0:05:25]} Rxb2 {[%emt 0:00:21]} 45. Rxh7 {[%emt 0:02:19]} Ra1 {[%emt 0:01:13]} 46. f5+ {[%emt 0:06:03]} Kf6 {[%emt 0:01:01]} 47. Rh6+ {[%emt 0:01:55]} Kf7 {[%emt 0:02:22]} 48. Rh7+ {[%emt 0:01:16]} Kg8 {[%emt 0:00:53]} 49. Rh4 {[%emt 0:00:04]} Ra3 {[%emt 0:03:45]} 50. Re4 {[%emt 0:02:07]} Rab3 {[%emt 0:01:12]} 51. h4 {[%emt 0:04:37]} Rb4 {[%emt 0:02:01]} 52. Nc4 {[%emt 0:00:48]} Rh2 {[%emt 0:01:26]} 53. Rg4+ {[%emt 0:01:05]} Kf8 {[%emt 0:00:28]} 54. Ne3 {[%emt 0:00:41]} Rxh4 {[%emt 0:00:24]} 55. Rxh4 {[%emt 0:00:25]} Rxh4 {[%emt 0:00:02]} 56. Ng4 {[%emt 0:00:12]} Rh3+ {[%emt 0:00:16]} 57. Kf4 {[%emt 0:00:05]} Ra3 {[%emt 0:00:07]} 58. Ne5 {[%emt 0:00:19]} Rxa4+ {[%emt 0:00:22]} 59. Kg5 {[%emt 0:00:01]} b5 {[%emt 0:01:19]} 60. f6 {[%emt 0:01:50]} Ra1 {[%emt 0:01:56]} 61. Kf5 {[%emt 0:00:15]} b4 {[%emt 0:00:41]} 62. Ng6+ {[%emt 0:00:59]} Ke8 {[%emt 0:00:22]} 63. Ke6 {[%emt 0:00:17]} Ra6+ {[%emt 0:00:20]} 64. Kf5 {[%emt 0:00:22]} b3 {[%emt 0:00:23]} 65. Ne5 {[%emt 0:00:03]} Ra5 {[%emt 0:00:13]} 66. Ke6 {[%emt 0:00:51]} Rxe5+ {[%emt 0:00:11]} 0-1

[Event "ESTCC-50 2025"]
[Site "Swidnica"]
[Date "2025.04.07"]
[Round "3.10"]
[White "Ograbek, Grzegorz"]
[Black "Regan, Natasha K"]
[Result "1/2-1/2"]
[Annotator "RC"]
[ECO "D26"]
[WhiteElo "2068"]
[BlackElo "2056"]
[PlyCount "122"]
[EventDate "2025.04.05"]
[EventType "team-tourn"]
[EventCountry "POL"]
[SourceTitle "playchess.com"]
[Source "ChessBase"]
[SourceQuality "1"]
[WhiteTeam "Poland"]
[BlackTeam "England"]
[WhiteTeamCountry "POL"]
[BlackTeamCountry "ENG"]
[TimeControl "40/5400+30:1800+30"]

1. d4 {[%emt 0:00:10]} d5 {[%emt 0:00:09]} 2. c4 {[%emt 0:00:15]} dxc4 {[%emt 0:00:06]} 3. Nf3 {[%emt 0:00:17]} Nf6 {[%emt 0:00:13]} 4. e3 {[%emt 0:00:17]} e6 {[%emt 0:00:16]} 5. Bxc4 {[%emt 0:00:30]} a6 {[%emt 0:00:22]} 6. O-O {[%emt 0:05:21]} Nbd7 {[%emt 0:00:34]} 7. a4 {[%emt 0:04:23]} c5 {[%emt 0:01:19]} 8. Qe2 {[%emt 0:00:27]} Qc7 {[%emt 0:02:08]} 9. Nc3 {[%emt 0:03:49]} Bd6 {[%emt 0:01:46]} 10. dxc5 {[%emt 0:09:17]} Qxc5 {[%emt 0:05:55]} 11. e4 {[%emt 0:21:16]} Ng4 {[%emt 0:19:44]} 12. e5 {[%emt 0:15:03]} Ndxe5 {[%emt 0:06:45]} 13. Ne4 {[%emt 0:00:50]} Qc7 {[%emt 0:18:20]} 14. Nxe5 {[%emt 0:00:26]} Nxe5 {[%emt 0:01:26]} 15. Nxd6+ {[%emt 0:01:40]} Qxd6 {[%emt 0:00:09]} 16. Bf4 {[%emt 0:00:25]} f6 {[%emt 0:00:35]} 17. Rfe1 {[%emt 0:02:16]} Bd7 {[%emt 0:11:22]} 18. Bxe5 {[%emt 0:13:53]} fxe5 {[%emt 0:00:40]} 19. Qh5+ {[%emt 0:01:04]} g6 {[%emt 0:02:56]} 20. Qxe5 {[%emt 0:02:50]} Qxe5 {[%emt 0:00:11]} 21. Rxe5 {[%emt 0:00:06]} Kf7 {[%emt 0:03:10]} 22. a5 {[%emt 0:01:53]} Rac8 {[%emt 0:03:52]} 23. b3 {[%emt 0:00:25]} Rc6 {[%emt 0:02:15]} 24. Rd1 {[%emt 0:01:23]} Bc8 {[%emt 0:01:24]} 25. f4 {[%emt 0:02:41]} Ke7 {[%emt 0:02:31]} 26. Kf2 {[%emt 0:03:17]} Rf8 {[%emt 0:04:11]} 27. Ke3 {[%emt 0:00:42]} Rf5 {[%emt 0:01:51]} 28. Rdd5 {[%emt 0:00:37]} Rxe5+ {[%emt 0:02:14]} 29. Rxe5 {[%emt 0:00:07]} Bd7 {[%emt 0:04:28]} 30. h4 {[%emt 0:00:12]} Rd6 {[%emt 0:00:27]} 31. h5 {[%emt 0:00:41]} Bc6 {[%emt 0:00:52]} 32. g4 {[%emt 0:01:38]} Bg2 {[%emt 0:01:36]} 33. hxg6 {[%emt 0:01:33]} hxg6 {[%emt 0:00:06]} 34. Rg5 {[%emt 0:00:35]} Kf7 {[%emt 0:02:25]} 35. f5 {[%emt 0:02:42]} gxf5 {[%emt 0:00:05]} 36. Rxf5+ {[%emt 0:00:05]} Kg6 {[%emt 0:00:58]} 37. Re5 {[%emt 0:01:07]} Kf6 {[%emt 0:00:13]} 38. Rh5 {[%emt 0:00:39]} b5 {[%emt 0:00:16]} 39. axb6 {[%emt 0:00:17]} Rxb6 {[%emt 0:00:05]} 40. Kf4 {[%emt 0:00:00]} Rd6 {[%emt 0:00:00]} 41. Rh6+ {[%emt 0:04:29]} Kg7 {[%emt 0:08:38]} 42. Rxe6 {[%emt 0:00:42]} Rxe6 {[%emt 0:00:49]} 43. Bxe6 {[%emt 0:00:08]} a5 {[%emt 0:00:31]} 44. Ke5 {[%emt 0:03:09]} Kg6 {[%emt 0:02:08]} 45. Kd6 {[%emt 0:00:50]} Kg5 {[%emt 0:00:59]} 46. Kc5 {[%emt 0:00:38]} Bf3 {[%emt 0:01:35]} 47. Kb5 {[%emt 0:04:53]} Bd1 {[%emt 0:00:22]} 48. Ka4 {[%emt 0:00:05]} Kf4 {[%emt 0:00:39]} 49. Ka3 {[%emt 0:01:07]} Kg5 {[%emt 0:00:16]} 50. Kb2 {[%emt 0:01:18]} Kf4 {[%emt 0:00:18]} 51. Kc3 {[%emt 0:00:59]} Kg5 {[%emt 0:00:29]} 52. Bd7 {[%emt 0:01:24]} Kf4 {[%emt 0:00:19]} 53. Kc4 {[%emt 0:04:15]} Kg5 {[%emt 0:00:28]} 54. Kc3 {[%emt 0:05:20]} Kf4 {[%emt 0:00:17]} 55. Bf5 {[%emt 0:01:20]} Kg5 {[%emt 0:00:34]} 56. Kb2 {[%emt 0:00:07]} Kf4 {[%emt 0:00:31]} 57. Ka3 {[%emt 0:00:03]} Kg5 {[%emt 0:00:20]} 58. Ka4 {[%emt 0:00:06]} Kf4 {[%emt 0:00:18]} 59. Be6 {[%emt 0:00:03]} Kg5 {[%emt 0:00:17]} 60. Kxa5 {[%emt 0:00:05]} Bxb3 {[%emt 0:00:08]} 61. Bxb3 {[%emt 0:00:04]} Kxg4 {[%emt 0:00:08]} 1/2-1/2

[Event "ESTCC-50 2025"]
[Site "Swidnica"]
[Date "2025.04.07"]
[Round "3.11"]
[White "Jackson, Sheila"]
[Black "Czyz, Andrzej"]
[Result "1-0"]
[Annotator "RC"]
[ECO "C08"]
[WhiteElo "2031"]
[BlackElo "1985"]
[PlyCount "118"]
[EventDate "2025.04.05"]
[EventType "team-tourn"]
[EventCountry "POL"]
[SourceTitle "playchess.com"]
[Source "ChessBase"]
[SourceQuality "1"]
[WhiteTeam "England"]
[BlackTeam "Poland"]
[WhiteTeamCountry "ENG"]
[BlackTeamCountry "POL"]
[TimeControl "40/5400+30:1800+30"]

1. e4 {[%emt 0:00:01]} e6 {[%emt 0:00:12]} 2. d4 {[%emt 0:00:11]} d5 {[%emt 0:00:09]} 3. Nd2 {[%emt 0:00:28]} c5 {[%emt 0:00:49]} 4. exd5 {[%emt 0:00:33]} exd5 {[%emt 0:01:33]} 5. Bb5+ {[%emt 0:00:35]} Nc6 {[%emt 0:00:23]} 6. Qe2+ {[%emt 0:00:57]} Qe7 {[%emt 0:01:09]} 7. dxc5 {[%emt 0:05:41]} Qxe2+ {[%emt 0:00:51]} 8. Nxe2 {[%emt 0:00:05]} Bxc5 {[%emt 0:00:18]} 9. Nb3 {[%emt 0:00:28]} Bb6 {[%emt 0:00:38]} 10. c3 {[%emt 0:10:16]} Nf6 {[%emt 0:01:29]} 11. O-O {[%emt 0:05:40]} O-O {[%emt 0:00:53]} 12. Bf4 {[%emt 0:03:44]} Bg4 {[%emt 0:04:04]} 13. h3 {[%emt 0:01:03]} Be6 {[%emt 0:02:29]} 14. Rad1 {[%emt 0:01:51]} a6 {[%emt 0:01:33]} 15. Bd3 {[%emt 0:04:22]} Rfe8 {[%emt 0:01:18]} 16. Ned4 {[%emt 0:01:48]} h6 {[%emt 0:09:26]} 17. Rfe1 {[%emt 0:02:43]} Bd7 {[%emt 0:02:30]} 18. Nf5 {[%emt 0:03:13]} Be6 {[%emt 0:11:56]} 19. Nbd4 {[%emt 0:06:39]} Nxd4 {[%emt 0:04:30]} 20. Nxd4 {[%emt 0:00:34]} Bxd4 {[%emt 0:06:17]} 21. cxd4 {[%emt 0:00:07]} Rac8 {[%emt 0:00:48]} 22. Rc1 {[%emt 0:06:17]} Rxc1 {[%emt 0:06:37]} 23. Rxc1 {[%emt 0:00:01]} Rc8 {[%emt 0:00:18]} 24. Rxc8+ {[%emt 0:03:17]} Bxc8 {[%emt 0:00:15]} 25. Bd6 {[%emt 0:00:29]} Ne4 {[%emt 0:02:07]} 26. Bb4 {[%emt 0:02:02]} f5 {[%emt 0:01:50]} 27. f3 {[%emt 0:01:53]} Nf6 {[%emt 0:00:45]} 28. Kf2 {[%emt 0:04:28]} Kf7 {[%emt 0:00:51]} 29. h4 {[%emt 0:04:11]} h5 {[%emt 0:04:34]} 30. Kg3 {[%emt 0:04:12]} g6 {[%emt 0:07:48]} 31. Kf4 {[%emt 0:01:53]} Ke6 {[%emt 0:00:11]} 32. Kg5 {[%emt 0:02:31]} Kf7 {[%emt 0:00:03]} 33. Bd6 {[%emt 0:06:40]} Bd7 {[%emt 0:03:21]} 34. Be5 {[%emt 0:02:54]} Nh7+ {[%emt 0:01:44]} 35. Kf4 {[%emt 0:02:12]} Nf6 {[%emt 0:06:38]} 36. Bc2 {[%emt 0:01:57]} Nh7 {[%emt 0:00:40]} 37. a4 {[%emt 0:03:41]} Nf8 {[%emt 0:00:45]} 38. Bd6 {[%emt 0:01:09]} Nh7 {[%emt 0:02:40]} 39. Ke5 {[%emt 0:01:39]} Nf6 {[%emt 0:00:34]} 40. Bb3 {[%emt 0:00:00]} Bc6 {[%emt 0:00:00]} 41. Bc7 {[%emt 0:07:18]} Nd7+ {[%emt 0:25:20]} 42. Kd6 {[%emt 0:00:34]} Nf6 {[%emt 0:00:54]} 43. Bd8 {[%emt 0:00:31]} Ne8+ {[%emt 0:03:55]} 44. Ke5 {[%emt 0:00:10]} Ng7 {[%emt 0:00:11]} 45. Bxd5+ {[%emt 0:02:28]} Bxd5 {[%emt 0:00:05]} 46. Kxd5 {[%emt 0:00:04]} Ne6 {[%emt 0:00:17]} 47. Bg5 {[%emt 0:01:18]} b5 {[%emt 0:00:57]} 48. a5 {[%emt 0:02:37]} b4 {[%emt 0:03:00]} 49. b3 {[%emt 0:06:09]} Nc7+ {[%emt 0:00:48]} 50. Kc6 {[%emt 0:03:36]} Nb5 {[%emt 0:00:13]} 51. Be3 {[%emt 0:01:46]} f4 {[%emt 0:00:28]} 52. Bf2 {[%emt 0:01:51]} Ke6 {[%emt 0:00:16]} 53. d5+ {[%emt 0:04:13]} Ke5 {[%emt 0:00:01]} 54. Kc5 {[%emt 0:00:21]} Nc7 {[%emt 0:01:23]} 55. Bd4+ {[%emt 0:00:51]} Kf5 {[%emt 0:00:03]} 56. Kc6 {[%emt 0:00:52]} Nb5 {[%emt 0:00:06]} 57. Bc5 {[%emt 0:00:41]} g5 {[%emt 0:01:05]} 58. hxg5 {[%emt 0:00:36]} Kxg5 {[%emt 0:00:01]} 59. d6 {[%emt 0:00:45]} Nxd6 {[%emt 0:01:48]} 1-0

[Event "ESTCC-50 2025"]
[Site "Swidnica"]
[Date "2025.04.07"]
[Round "3.12"]
[White "Wielosz, Jaroslaw"]
[Black "Fink-Nunn, Petra"]
[Result "1-0"]
[Annotator "RC"]
[ECO "A13"]
[WhiteElo "1939"]
[BlackElo "1997"]
[PlyCount "81"]
[EventDate "2025.04.05"]
[EventType "team-tourn"]
[EventCountry "POL"]
[SourceTitle "playchess.com"]
[Source "ChessBase"]
[SourceQuality "1"]
[WhiteTeam "Poland"]
[BlackTeam "England"]
[WhiteTeamCountry "POL"]
[BlackTeamCountry "ENG"]
[TimeControl "40/5400+30:1800+30"]

1. c4 {[%emt 0:00:15]} e6 {[%emt 0:00:12]} 2. Nf3 {[%emt 0:00:17]} d5 {[%emt 0:00:08]} 3. d4 {[%emt 0:00:12]} Nf6 {[%emt 0:00:14]} 4. g3 {[%emt 0:00:13]} Bb4+ {[%emt 0:00:25]} 5. Bd2 {[%emt 0:00:16]} Be7 {[%emt 0:00:11]} 6. Bg2 {[%emt 0:00:37]} O-O {[%emt 0:00:18]} 7. O-O {[%emt 0:01:50]} c6 {[%emt 0:00:18]} 8. Qc2 {[%emt 0:00:26]} Nbd7 {[%emt 0:03:24]} 9. Rd1 {[%emt 0:01:35]} b6 {[%emt 0:01:04]} 10. b3 {[%emt 0:06:37]} Ba6 {[%emt 0:16:01]} 11. a4 {[%emt 0:17:25]} Ne4 {[%emt 0:06:15]} 12. Be1 {[%emt 0:06:13]} f5 {[%emt 0:29:35]} 13. a5 {[%emt 0:15:28]} Qc8 {[%emt 0:03:01]} 14. Nfd2 {[%emt 0:13:05]} Bf6 {[%emt 0:14:12]} 15. Nxe4 {[%emt 0:00:29]} fxe4 {[%emt 0:00:46]} 16. Bh3 {[%emt 0:06:14]} Re8 {[%emt 0:00:28]} 17. e3 {[%emt 0:09:44]} Bb7 {[%emt 0:08:25]} 18. axb6 {[%emt 0:03:37]} axb6 {[%emt 0:00:11]} 19. Rxa8 {[%emt 0:00:15]} Bxa8 {[%emt 0:00:39]} 20. cxd5 {[%emt 0:03:14]} exd5 {[%emt 0:00:17]} 21. Nc3 {[%emt 0:01:42]} Rd8 {[%emt 0:04:26]} 22. Nxd5 {[%emt 0:02:31]} cxd5 {[%emt 0:00:42]} 23. Qxc8 {[%emt 0:00:30]} Rxc8 {[%emt 0:00:00]} 24. Bxd7 {[%emt 0:00:19]} Rc2 {[%emt 0:00:22]} 25. Ra1 {[%emt 0:02:10]} Bb7 {[%emt 0:00:03]} 26. Bb4 {[%emt 0:01:26]} Kf7 {[%emt 0:04:34]} 27. Kg2 {[%emt 0:01:35]} Be7 {[%emt 0:02:30]} 28. Bxe7 {[%emt 0:00:52]} Kxe7 {[%emt 0:00:02]} 29. Bb5 {[%emt 0:01:23]} Bc8 {[%emt 0:00:30]} 30. Ra7+ {[%emt 0:00:42]} Kf6 {[%emt 0:00:02]} 31. h3 {[%emt 0:01:38]} Rb2 {[%emt 0:01:03]} 32. Ba4 {[%emt 0:01:05]} b5 {[%emt 0:00:10]} 33. Bxb5 {[%emt 0:00:18]} Rxb3 {[%emt 0:00:01]} 34. Bc6 {[%emt 0:00:57]} Be6 {[%emt 0:00:02]} 35. Ra5 {[%emt 0:00:34]} Rc3 {[%emt 0:04:19]} 36. Bxd5 {[%emt 0:00:25]} Bf5 {[%emt 0:00:08]} 37. Ra6+ {[%emt 0:00:41]} Kg5 {[%emt 0:00:07]} 38. Be6 {[%emt 0:00:54]} Bg6 {[%emt 0:00:08]} 39. Bg4 {[%emt 0:00:44]} h5 {[%emt 0:00:24]} 40. h4+ {[%emt 0:00:00]} Kh6 {[%emt 0:00:00]} 41. Bf5 {[%emt 0:01:21]} 1-0

[Event "ESTCC-50 2025"]
[Site "Swidnica"]
[Date "2025.04.07"]
[Round "3.13"]
[White "Zych, Marek"]
[Black "Adams, Michael"]
[Result "0-1"]
[Annotator "TA"]
[ECO "D02"]
[WhiteElo "1942"]
[BlackElo "2661"]
[PlyCount "60"]
[EventDate "2025.04.05"]
[EventType "team-tourn"]
[EventCountry "POL"]
[SourceTitle "playchess.com"]
[Source "ChessBase"]
[SourceQuality "1"]
[WhiteTeam "Poland"]
[BlackTeam "England"]
[WhiteTeamCountry "POL"]
[BlackTeamCountry "ENG"]
[TimeControl "40/5400+30:1800+30"]

{[%evp 9,60,20,22,17,29,17,16,0,-2,0,0,0,0,-6,0,0,0,-3,10,13,7,-4,0,0,5,0,6,3,4,0,0,0,0,0,0,-8,0,0,12,-49,-27,-49,0,-132,-139,-564,-571,-565,-554,-569,-553,-769,-712]} 1. Nf3 {[%emt 0:00:05]} d5 {[%emt 0:00:07]} 2. d4 {[%emt 0:00:22]} Nf6 {[%emt 0:00:14]} 3. g3 {[%emt 0:00:16]} c5 {[%emt 0:04:15]} 4. Bg2 {[%emt 0:06:55]} cxd4 {[%emt 0:01:02]} 5. O-O {[%emt 0:00:41]} h6 {[%emt 0:00:42]} 6. b3 {[%emt 0:01:30][%cal Oc1b2] D02: 1 d4 d5 2 Nf3 sidelines, including 2...Nf6 3 g3 and 2...Nf6 3 Bf4.} e6 {[%emt 0:14:38]} 7. Bb2 {[%emt 0:02:42]} Bc5 {[%emt 0:02:00]} 8. Bxd4 {[%emt 0:06:37] The position is equal.} Bxd4 {[%emt 0:00:23]} 9. Qxd4 {[%emt 0:00:17]} Nc6 {[%emt 0:00:18]} 10. Qb2 {[%emt 0:02:09]} O-O {[%emt 0:08:45]} 11. Rd1 {[%emt 0:01:51]} Qc7 $146 {[%emt 0:06:22]} (11... Qe7 12. c4 dxc4 13. bxc4 Qc7 14. Nc3 a6 15. Na4 Na5 16. Rac1 Bd7 17. Nb6 Rad8 {0-1 Brejnik,G (2214)-Nastore,P (2244) Titled Tuesday intern op 18th Jun Early blitz 2024 (6)}) 12. c4 {[%emt 0:01:06]} dxc4 {[%emt 0:00:09]} 13. bxc4 {[%emt 0:00:04]} Bd7 {[%emt 0:04:21]} 14. Na3 {[%emt 0:00:28][%cal Bb1a3,Ba3b5,Bb5d4,Bd4b3][%mdl 32]} Rfd8 {[%emt 0:09:42]} 15. Rab1 {[%emt 0:08:50][%cal Oa3b5]} Be8 {[%emt 0:05:30]} 16. Nb5 {[%emt 0:01:38]} Qe7 {[%emt 0:03:13]} 17. Ne5 {[%emt 0:01:27]} a6 {[%emt 0:05:54]} 18. Nxc6 {[%emt 0:01:05]} Bxc6 {[%emt 0:00:08]} 19. Bxc6 {[%emt 0:00:16]} bxc6 {[%emt 0:00:02]} 20. Nd4 {[%emt 0:00:35]} Qc5 {[%emt 0:01:19]} 21. e3 {[%emt 0:00:25]} Rac8 {[%emt 0:06:44]} 22. Qb7 {[%emt 0:06:14]} a5 {[%emt 0:04:31]} (22... Qxc4 23. Rdc1 Qa4 (23... Qxa2 24. Nxc6 Ng4 25. Rb2 $16) 24. Nxc6 (24. Rxc6 Rxc6 25. Nxc6 Rd1+ 26. Rxd1 Qxd1+ 27. Kg2 Qd5+ 28. Kg1 Qxa2 $17) 24... Rxc6 25. Rxc6 (25. Qxc6 $2 Rd1+ 26. Kg2 Qxc6+ 27. Rxc6 Rxb1 $19) 25... Rd1+ 26. Rxd1 Qxd1+ 27. Kg2 Qd5+ 28. e4 Qxe4+ 29. Kf1 Qh1+ 30. Ke2 Qe4+ 31. Kd2 Qd4+ 32. Ke1) 23. Nb3 {[%emt 0:00:56]} Qf5 {[%emt 0:00:46]} 24. Qb6 {[%emt 0:09:21] Wards off e5} ({White should try} 24. Rxd8+ $11 Rxd8 25. Nd4) 24... Rxd1+ $15 {[%emt 0:06:33]} 25. Rxd1 {[%emt 0:00:03]} Ne4 {[%emt 0:03:12]} (25... Ng4 $15 26. Rf1 Qh5) 26. f4 {[%emt 0:02:09]} ({Not} 26. Rd8+ $2 Kh7 27. Rd2 Nxd2 28. Nxd2 a4 $19) (26. Rf1 $1 $11) 26... Qh5 $36 {[%emt 0:02:17][%mdl 2048] Keeping White busy.} 27. Rd8+ {[%emt 0:01:53][%mdl 8192] [#] Loses the game.} (27. Rf1 $17) 27... Kh7 $1 $19 {[%emt 0:00:55] Strongly threatening ...Rxd8. Black is clearly winning.} ({Less strong is} 27... Rxd8 28. Qxd8+ Kh7 29. Qd3 $17) 28. Rd4 {[%emt 0:04:18]} Qf3 {[%emt 0:01:36] ( -> ...Qf2+)} 29. Rxe4 {[%emt 0:00:54]} Qxe4 {[%emt 0:00:05]} 30. Nxa5 {[%emt 0:06:29]} Ra8 {[%emt 0:01:31] Weighted Error Value: White=0.51/Black=0.05 (flawless)   Loses game:     	White=1     	---        Mistake:       	White=2     	Black=1      Inaccurate:     	White=1     	---        OK:         	White=9     	Black=12     Best:        	White=1     	Black=1      Strong:       	---       	Black=1} 0-1